bitfinex-derivatives/quotes_ETHF0:USTF0_20251013
["timestamp","ask_amount","ask_price","bid_price","bid_amount"]
[1760343020870,4.96625866,4177.3,4176.8,0.4859]
[1760343021180,1.159,4176.9,4176.8,1.24864]
[1760343021378,1.159,4176.9,4176.8,0.3321]
[1760343021582,1.159,4176.9,4176.8,1.1433]
[1760343022279,0.43062,4177.1,4176.8,0.6574]
[1760343022479,1.26192,4177.1,4177.0,0.6574]
[1760343022684,3.98759235,4177.1,4177.0,1.1433]
[1760343022877,0.8313,4177.1,4177.0,1.1433]
[1760343023077,3.2078,4177.3,4177.1,0.4859]
[1760343023275,3.2078,4177.3,4177.2,0.6574]
[1760343023481,3.2078,4177.3,4177.2,1.1433]
[1760343025985,3.2078,4177.8,4177.7,1.1433]
[1760343026184,3.80723458,4177.8,4177.7,1.1433]
[1760343026485,3.2078,4178.3,4177.7,0.4859]
[1760343026783,3.2078,4178.3,4177.5,0.2106]
[1760343026784,3.541,4178.3,4178.2,1.1433]
[1760343026986,4.14055336,4178.3,4178.2,1.1433]
[1760343027788,3.80735336,4178.3,4178.2,1.5738]
[1760343027988,3.2078,4178.3,4178.2,1.5738]
[1760343032682,0.3332,4178.6,4178.5,1.57377]
[1760343033186,0.3332,4178.6,4178.5,1.78437]
[1760343033387,1.159,4178.6,4178.5,1.57377]
[1760343033586,1.159,4178.6,4178.5,1.1433]
[1760343036383,1.159,4178.6,4178.5,0.3321]
[1760343036582,1.159,4178.2,4178.1,0.3321]
[1760343037083,1.159,4178.2,4178.1,0.818]
[1760343037285,1.159,4178.2,4178.1,1.1433]
[1760343038491,0.4981,4178.1,4178.0,0.43052]
[1760343038791,1.159,4178.1,4178.0,0.43052]
[1760343038989,1.159,4178.1,4178.0,1.24852]
[1760343039781,0.3277,4177.7,4177.4,3.5399]
[1760343039984,1.159,4177.5,4177.4,4.78168]
[1760343041786,0.3332,4177.5,4177.4,4.78168]
[1760343042286,0.43051,4178.2,4178.1,0.6574]
[1760343042487,3.2078,4178.3,4178.2,1.5738]
[1760343044092,3.2078,4178.3,4178.0,0.2106]
[1760343044093,1.2639333,4178.7,4178.6,0.6574]
[1760343044293,1.86525572,4178.7,4178.6,1.1433]
[1760343044493,0.0021833,4178.7,4178.6,4.3511]
[1760343045692,0.0021833,4178.7,4178.6,1.1433]
[1760343047891,3.2078,4179.3,4179.2,1.1433]
[1760343048089,3.2078,4179.3,4179.2,1.5737]
[1760343048899,0.00248895,4179.3,4179.2,4.78453857]
[1760343052391,1.59067895,4179.3,4179.2,3.54293857]
[1760343052597,1.16028895,4179.3,4179.2,3.54293857]
[1760343052790,1.16028895,4179.3,4178.6,3.2078]
[1760343052990,0.5163,4178.9,4178.0,0.5051]
[1760343053300,0.5163,4178.3,4177.8,0.5051]
[1760343053494,0.43055,4177.8,4177.5,0.5051]
[1760343053691,0.5163,4177.7,4177.4,0.5051]
[1760343053888,3.2078,4177.9,4177.4,0.00306388]
[1760343054089,0.5163,4177.7,4177.4,0.00306388]
[1760343054799,0.43055,4177.8,4177.5,0.5051]
[1760343054997,0.43056,4177.6,4177.5,0.5051]
[1760343055302,0.5163,4177.5,4177.4,0.00306388]
[1760343055692,1.1578,4177.5,4177.4,0.00306388]
[1760343055895,5.12122946,4177.5,4177.4,0.00306388]
[1760343056302,5.12122946,4177.5,4176.7,3.7129]
[1760343056303,1.1578,4176.8,4176.7,4.0399]
[1760343057000,1.1578,4176.8,4176.7,4.3913]
[1760343057202,0.8412,4177.4,4177.3,1.1835]
[1760343057500,4.5038373,4177.4,4177.3,1.1835]
[1760343057901,4.8204373,4177.4,4177.3,1.1835]
[1760343058605,4.8204373,4177.4,4177.3,0.327]
[1760343058800,0.5163,4176.9,4176.7,0.00266503]
[1760343059004,1.1578,4176.8,4176.7,0.00266503]
[1760343059300,6.79668119,4176.8,4176.7,0.00266503]
[1760343059505,7.39737934,4176.8,4176.7,0.00266503]
[1760343060199,3.2078,4177.3,4177.1,0.43061]
[1760343060398,3.2078,4177.3,4177.2,0.5051]
[1760343060705,3.2078,4177.3,4176.7,0.50776503]
[1760343060706,6.86825887,4177.3,4176.7,0.50776503]
[1760343060906,3.7241,4177.3,4176.7,0.50776503]
[1760343061102,3.63815213,4177.2,4176.7,0.93841503]
[1760343061305,0.5163,4177.1,4176.9,0.93573]
[1760343061508,3.2078,4177.3,4177.2,0.4306]
[1760343061806,3.2078,4177.3,4177.2,0.9357]
[1760343062208,3.7241,4177.3,4177.2,0.9357]
[1760343062907,3.7241,4177.3,4176.7,0.00266503]
[1760343062908,3.7241,4177.3,4176.7,0.50776503]
[1760343063305,3.2078,4177.3,4176.7,0.00266503]
[1760343063505,0.6415,4177.2,4177.1,0.327]
[1760343063702,1.1578,4177.2,4177.1,0.327]
[1760343065102,3.2078,4177.3,4176.7,0.00266503]
[1760343065103,3.2078,4177.3,4177.2,1.6141]
[1760343065301,4.3656,4177.3,4177.2,0.4306]
[1760343065604,1.1578,4177.1,4177.0,0.43062]
[1760343066006,1.1578,4177.1,4177.0,1.61412]
[1760343066507,0.3249,4177.1,4177.0,1.61412]
[1760343067203,3.2078,4177.8,4177.7,1.61405]
[1760343067596,3.2078,4177.8,4177.7,0.93565]
[1760343067810,3.7241,4178.8,4178.7,0.5051]
[1760343068008,4.3270338,4178.8,4178.7,0.5051]
[1760343068211,3.7241,4178.8,4178.7,0.5051]
[1760343068506,3.2078,4178.8,4178.7,0.5051]
[1760343068907,3.21028895,4179.3,4179.2,0.4304]
[1760343069105,3.72658895,4179.3,4179.2,0.9355]
[1760343069406,3.21028895,4179.3,4179.2,0.9355]
[1760343069601,0.00248895,4179.3,4179.2,0.9355]
[1760343070999,3.2078,4180.3,4180.2,0.93539]
[1760343071413,3.7241,4180.3,4179.7,0.5051]
[1760343071709,3.2078,4180.3,4180.0,0.5051]
[1760343071904,0.5163,4180.2,4180.0,0.50764739]
[1760343072106,3.21024384,4180.3,4180.0,0.50764739]
[1760343072308,0.5163,4180.2,4180.0,0.93795739]
[1760343072500,3.21024384,4180.3,4180.0,0.93795739]
[1760343073102,0.5163,4180.1,4180.0,0.00254739]
[1760343073614,3.59778931,4180.1,4180.0,0.50764739]
[1760343073821,0.5163,4180.1,4180.0,0.50764739]
[1760343074313,4.12331717,4180.1,4180.0,0.00254739]
[1760343074616,3.69300717,4180.1,4180.0,0.00254739]
[1760343074916,3.21024384,4180.3,4180.1,0.5051]
[1760343075116,3.21024384,4180.3,4180.2,0.93539]
[1760343076910,0.00244384,4180.3,4180.2,0.93539]
[1760343078113,3.4278,4181.3,4181.1,0.4302]
[1760343078305,0.5163,4181.2,4181.1,0.5051]
[1760343078518,3.85799,4181.3,4180.7,0.43024]
[1760343078818,3.85799,4181.3,4180.9,0.5051]
[1760343079009,0.9465,4181.2,4180.9,0.5051]
[1760343079209,0.5163,4181.1,4180.9,0.5051]
[1760343079605,0.5163,4181.1,4180.5,0.2079]
[1760343079606,0.4699,4181.0,4180.5,0.4836]
[1760343079911,0.4699,4181.0,4180.1,3.2078]
[1760343079912,0.4699,4180.4,4180.2,0.4836]
[1760343080112,0.43025,4180.7,4180.3,0.4836]
[1760343080306,0.4699,4180.6,4180.1,0.4836]
[1760343080619,0.4699,4180.6,4180.4,0.43027]
[1760343080820,0.4699,4180.6,4180.5,0.4836]
[1760343081606,0.4699,4180.7,4180.5,0.43026]
[1760343081816,0.4699,4180.7,4180.6,0.4836]
[1760343082813,0.4699,4180.7,4180.0,0.68494739]
[1760343083014,0.4699,4180.2,4180.1,0.4836]
[1760343083607,0.4699,4180.5,4180.3,0.4836]
[1760343083918,0.4699,4180.5,4180.0,0.00254739]
[1760343083919,0.4699,4180.4,4180.1,0.4836]
[1760343084118,0.90018,4180.4,4180.1,0.4836]
[1760343084414,0.4699,4180.2,4180.1,0.4836]
[1760343084622,0.43029,4180.3,4180.0,0.00254739]
[1760343084623,0.90021,4180.1,4180.0,0.00254739]
[1760343084815,0.4699,4180.1,4180.0,0.00254739]
[1760343085013,3.5191911,4180.1,4180.0,0.00254739]
[1760343085209,0.4699,4180.1,4180.0,0.00254739]
[1760343085615,3.5191911,4180.1,4180.0,0.00254739]
[1760343086320,0.4699,4180.1,4180.0,0.48614739]
[1760343086514,0.90016,4180.6,4180.2,0.43029]
[1760343086720,0.43027,4180.5,4180.3,0.4836]
[1760343086913,0.4699,4180.4,4180.0,0.20134739]
[1760343087116,0.2054,4180.0,4179.1,3.2078]
[1760343087319,0.4699,4178.3,4177.9,3.2078]
[1760343087517,0.4699,4178.2,4177.8,0.43054]
[1760343087720,0.4699,4178.2,4177.6,0.91416]
[1760343088018,0.4699,4178.2,4177.5,0.1988]
[1760343088019,3.6383,4178.3,4177.5,0.62937]
[1760343088224,0.4699,4178.2,4177.5,0.68431569]
[1760343088617,0.4699,4178.2,4177.6,0.4836]
[1760343089020,0.4699,4178.2,4177.9,0.43053]
[1760343089323,0.43052,4178.1,4177.6,0.91415]
[1760343089522,0.4699,4178.0,4177.7,0.4836]
[1760343089823,0.4699,4178.0,4177.9,0.91413]
[1760343090120,0.4699,4178.0,4177.9,0.4836]
[1760343090515,3.64071949,4178.3,4177.9,0.4836]
[1760343090516,3.21022949,4178.3,4177.9,0.4836]
[1760343090721,0.43054,4177.8,4177.6,0.4836]
[1760343091016,0.4699,4177.6,4177.5,0.00191569]
[1760343091318,0.4699,4177.6,4176.3,0.4836]
[1760343091319,3.167836,4177.6,4176.3,3.6914]
[1760343091513,0.43066,4176.7,4176.3,3.2078]
[1760343091713,0.4699,4176.4,4176.3,3.2078]
[1760343092421,0.43064,4176.9,4176.3,3.68172827]
[1760343092619,0.43065,4176.8,4176.3,3.68172827]
[1760343092924,0.4874,4176.8,4176.3,3.64122827]
[1760343093125,0.4874,4176.8,4176.4,0.4712]
[1760343093423,0.43064,4176.9,4176.4,0.4712]
[1760343093724,0.4874,4176.7,4176.4,0.4712]
[1760343094020,0.4874,4176.4,4176.3,0.00272827]
[1760343094422,3.54389579,4176.4,4176.3,0.00272827]
[1760343099820,3.54389579,4176.4,4174.9,0.4712]
[1760343099821,0.43079,4175.4,4174.9,0.4712]
[1760343100013,0.43081,4175.3,4174.9,0.4712]
[1760343100218,0.4874,4175.2,4174.9,0.4712]
[1760343100418,0.43081,4175.3,4174.9,0.4712]
[1760343100618,0.4874,4175.4,4174.8,3.679]
[1760343100818,0.48972523,4175.4,4174.8,3.6814285]
[1760343101120,0.4874,4175.3,4175.1,0.4712]
[1760343101319,0.4874,4175.3,4175.1,0.90201]
[1760343101519,0.43311523,4175.4,4175.1,0.4712]
[1760343101822,0.4874,4175.3,4175.1,0.4712]
[1760343102024,0.43311523,4175.4,4175.1,0.4712]
[1760343102326,0.4874,4175.3,4175.1,0.4712]
[1760343103321,0.43311523,4175.4,4175.1,0.4712]
[1760343103529,0.4874,4175.3,4175.1,0.90202]
[1760343103719,0.4874,4175.3,4175.2,0.4712]
[1760343105019,0.43312523,4175.4,4174.8,3.2102285]
[1760343105020,0.00232523,4175.4,4175.3,0.4308]
[1760343105222,0.48972523,4175.4,4175.3,0.4712]
[1760343105427,0.4874,4175.3,4175.1,0.4712]
[1760343105726,0.4874,4175.3,4175.1,0.90202]
[1760343106121,0.43081,4175.2,4174.8,3.6814285]
[1760343106520,0.4874,4175.3,4174.8,3.2102285]
[1760343106725,0.4874,4175.3,4175.1,0.90201]
[1760343106925,0.4874,4175.2,4175.1,0.90201]
[1760343107328,0.00232523,4175.4,4175.3,0.4712]
[1760343107630,0.48972523,4175.4,4175.3,0.4712]
[1760343107829,0.00232523,4175.4,4175.3,0.4712]
[1760343108329,0.00232523,4175.4,4175.3,1.1252]
[1760343108828,0.81602523,4175.4,4175.3,1.1252]
[1760343109134,0.81602523,4175.4,4175.3,0.654]
[1760343109135,1.12482523,4175.4,4175.3,0.654]
[1760343109622,0.00232523,4175.4,4175.3,0.4308]
[1760343109828,0.00232523,4175.4,4175.3,1.5761]
[1760343111333,0.00232523,4175.4,4175.3,1.1453]
[1760343112228,0.31342523,4175.4,4175.3,1.1453]
[1760343112625,1.12132523,4175.4,4175.3,0.639]
[1760343112824,1.12132523,4175.4,4175.3,0.3068]
[1760343113031,0.497,4175.3,4175.0,3.2078]
[1760343113325,0.43081,4175.3,4175.0,3.2078]
[1760343113632,0.497,4175.3,4175.0,3.2078]
[1760343113925,0.00232523,4175.4,4175.0,4.14492]
[1760343114126,0.00232523,4175.4,4175.0,3.4085]
[1760343114529,0.49932523,4175.4,4175.2,0.4308]
[1760343114728,0.00232523,4175.4,4175.3,0.5063]
[1760343115228,0.49932523,4175.4,4175.0,3.2078]
[1760343115530,0.497,4175.1,4175.0,3.2078]
[1760343115725,0.497,4175.1,4175.0,3.7141]
[1760343116119,0.497,4175.1,4175.0,4.14493]
[1760343116526,0.497,4175.1,4175.0,3.7141]
[1760343116727,0.497,4175.1,4175.0,3.2078]
[1760343117429,1.10677624,4175.1,4175.0,3.2078]
[1760343117626,1.10677624,4175.1,4175.0,3.7141]
[1760343118026,0.60977624,4175.1,4175.0,3.7141]
[1760343118334,0.60977624,4175.1,4175.0,4.5538]
[1760343125435,1.72877624,4175.1,4175.0,3.5146]
[1760343125631,1.07693,4175.7,4175.0,3.5146]
[1760343125632,1.2789494,4175.9,4175.7,0.43076]
[1760343125834,1.2789494,4175.9,4175.2,1.07703]
[1760343125835,0.6896,4176.0,4175.9,0.43074]
[1760343126738,0.69233214,4176.0,4175.9,0.43074]
[1760343126931,0.69233214,4176.0,4175.8,3.2078]
[1760343126932,1.119,4175.9,4175.8,3.2078]
[1760343127134,1.119,4175.9,4175.7,0.43075]
[1760343128541,1.119,4175.3,4175.2,3.2078]
[1760343130235,0.497,4175.3,4175.2,3.2078]
[1760343131746,0.8081,4175.3,4175.2,3.2078]
[1760343133650,0.497,4175.3,4175.2,3.2078]
[1760343134046,0.8081,4175.3,4175.2,3.2078]
[1760343134644,1.119,4175.3,4175.2,3.2078]
[1760343136546,0.497,4175.3,4175.2,3.2078]
[1760343137049,1.119,4175.3,4175.2,3.2078]
[1760343137649,1.119,4175.3,4175.1,0.43081]
[1760343137650,1.69157407,4175.3,4175.1,0.43081]
[1760343137849,1.69157407,4175.2,4175.1,0.43081]
[1760343138855,1.119,4174.9,4174.8,0.0024285]
[1760343139054,1.69157407,4174.9,4174.8,0.0024285]
[1760343139248,4.8022443,4174.9,4174.8,0.0024285]
[1760343139957,1.69157407,4174.9,4174.8,0.0024285]
[1760343140151,4.86394039,4174.9,4174.8,0.0024285]
[1760343142053,0.8081,4174.9,4174.8,0.0024285]
[1760343142460,0.497,4174.9,4174.8,0.0024285]
[1760343142760,0.497,4174.9,4174.8,3.2102285]
[1760343143158,0.1926,4175.0,4174.9,0.43084]
[1760343145263,0.6672,4175.0,4174.9,0.43084]
[1760343145754,0.4746,4174.9,4174.8,0.0024285]
[1760343145954,0.43089,4174.5,4174.0,0.43093]
[1760343146154,0.4746,4174.3,4174.0,0.43093]
[1760343146753,0.4746,4174.3,4174.1,0.43092]
[1760343146953,0.4746,4174.3,4174.1,0.43338427]
[1760343148963,0.4746,4174.2,4174.1,0.00246427]
[1760343153461,0.5008,4174.8,4174.1,0.00246427]
[1760343153660,0.5008,4174.8,4174.7,3.2078]
[1760343153860,0.1926,4175.0,4174.9,0.43084]
[1760343154267,0.7042,4175.5,4175.4,0.43079]
[1760343155059,0.20613214,4176.0,4175.9,0.43074]
[1760343155267,0.00273214,4176.0,4175.9,0.43074]
[1760343155570,0.2042,4176.5,4176.3,0.4307]
[1760343155866,0.5008,4176.4,4176.3,0.4307]
[1760343156462,0.00289335,4176.4,4176.3,3.6385]
[1760343157666,0.50369335,4176.4,4176.3,3.6385]
[1760343158366,0.2042,4177.0,4176.9,0.43063]
[1760343158766,0.705,4177.0,4176.9,0.43063]
[1760343158962,0.705,4177.5,4177.4,0.43058]
[1760343159473,0.70669764,4177.5,4177.4,0.43259876]
[1760343159661,0.00169764,4177.5,4177.4,0.43259876]
[1760343159860,0.2042,4178.5,4178.4,0.43048]
[1760343160769,0.70719288,4178.5,4178.4,0.43048]
[1760343162476,0.2042,4179.0,4178.9,0.43043]
[1760343162771,3.412,4179.5,4178.9,3.2078]
[1760343162772,3.9128,4179.5,4178.9,3.2078]
[1760343162972,0.5008,4179.4,4179.3,0.43039]
[1760343163569,0.50371989,4179.4,4179.3,0.43039]
[1760343165171,0.705,4179.0,4178.9,0.2889]
[1760343165769,3.9128,4179.0,4178.9,0.2889]
[1760343166566,4.34322,4179.0,4178.5,0.43046]
[1760343167076,4.34322,4179.0,4178.6,0.43045]
[1760343167574,0.5008,4178.9,4178.8,0.43043]
[1760343170985,0.2042,4179.0,4178.5,0.2889]
[1760343171280,0.4824,4178.7,4178.6,0.43045]
[1760343172174,0.4824,4178.7,4178.5,0.2889]
[1760343172781,0.6785,4177.5,4177.4,0.43259876]
[1760343172968,0.1961,4177.5,4177.4,0.43259876]
[1760343173176,0.4824,4177.9,4177.8,0.43054]
[1760343174784,0.6785,4178.5,4178.4,0.43048]
[1760343175082,0.1961,4178.5,4178.4,0.43048]
[1760343175279,0.6785,4178.5,4178.4,0.43048]
[1760343175476,0.2042,4179.0,4178.7,0.43045]
[1760343175669,3.6902,4178.8,4178.7,0.43045]
[1760343177681,0.4824,4178.8,4178.7,0.43045]
[1760343179380,0.2042,4179.0,4178.9,0.43043]
[1760343179778,0.6866,4179.0,4178.9,0.43043]
[1760343182290,0.4824,4178.4,4178.3,3.63829]
[1760343182688,0.2042,4179.0,4178.9,0.43043]
[1760343182689,0.6866,4179.0,4178.9,0.43043]
[1760343182988,3.6902,4179.8,4179.3,0.43039]
[1760343183391,0.4824,4180.2,4179.9,0.43033]
[1760343183581,0.6785,4180.0,4179.9,0.43033]
[1760343184391,0.68085621,4180.0,4179.9,0.43033]
[1760343184887,0.1961,4179.5,4179.4,0.43038]
[1760343185191,0.6785,4179.5,4179.4,0.43038]
[1760343186487,0.6785,4179.5,4179.1,3.2078]
[1760343186488,0.6785,4179.5,4179.3,0.43038]
[1760343186686,0.4824,4179.4,4179.3,0.43038]
[1760343187789,0.4824,4179.9,4179.4,1.07594]
[1760343188190,0.4824,4179.9,4179.8,0.43034]
[1760343189191,0.19845621,4180.0,4179.8,0.43034]
[1760343189390,0.00235621,4180.0,4179.8,0.43034]
[1760343189791,0.4824,4180.7,4180.0,1.07579]
[1760343190091,0.4824,4180.7,4180.6,0.43025]
[1760343190790,0.48488508,4180.7,4180.6,0.43205376]
[1760343190991,0.48488508,4180.7,4180.6,0.00180376]
[1760343191398,1.05393873,4180.7,4180.6,0.00180376]
[1760343193184,0.1961,4180.0,4179.8,0.43033]
[1760343193385,0.4824,4179.9,4179.8,0.43033]
[1760343194087,0.4824,4179.9,4179.8,0.4330557]
[1760343196187,0.1961,4180.0,4179.8,0.4330557]
[1760343196386,0.6785,4180.0,4179.8,0.4330557]
[1760343197692,0.6785,4180.5,4180.4,0.43027]
[1760343197896,0.00248508,4180.7,4180.2,1.07574]
[1760343198394,0.48488508,4180.7,4180.6,0.43025]
[1760343198889,0.22,4181.3,4180.8,1.07559]
[1760343199087,3.2078,4182.3,4180.8,1.07559]
[1760343199088,0.1961,4182.5,4181.6,10.75384]
[1760343199291,7.74e-06,4182.5,4182.4,3.63787]
[1760343199494,0.1961,4184.0,4183.4,0.42997]
[1760343199790,0.1961,4184.0,4183.4,3.63777]
[1760343199988,0.19797493,4183.5,4183.4,3.64050654]
[1760343200591,0.19797493,4183.5,4183.4,3.21053654]
[1760343200901,0.19797493,4183.5,4183.4,3.64050654]
[1760343201302,0.66497493,4183.5,4183.4,3.64050654]
[1760343204199,0.6631,4184.0,4183.9,0.42991]
[1760343204398,0.18271,4184.6,4184.4,0.42986]
[1760343204697,0.18271,4184.6,4184.5,3.2078]
[1760343205090,0.18496576,4184.6,4184.5,3.2078]
[1760343209200,0.18496576,4184.6,4184.5,3.63765]
[1760343209796,0.18496576,4184.6,4184.5,3.2078]
[1760343210293,0.1827,4184.5,4184.0,3.2078]
[1760343210495,0.467,4184.4,4184.0,3.6377]
[1760343210704,0.467,4184.2,4184.0,3.2078]
[1760343211201,0.467,4184.1,4184.0,3.2078]
[1760343214606,0.467,4184.1,4184.0,3.6377]
[1760343215406,0.1827,4184.5,4184.4,0.42986]
[1760343215909,0.6497,4184.5,4184.4,0.42986]
[1760343216900,0.1827,4184.5,4184.4,0.42986]
[1760343217608,0.00225576,4184.6,4184.4,0.42986]
[1760343217810,0.467,4184.9,4184.5,3.2078]
[1760343218204,0.1827,4185.0,4184.5,3.2078]
[1760343218808,0.18463631,4185.0,4184.5,3.2078]
[1760343219109,0.467,4184.9,4184.5,3.2078]
[1760343219709,0.467,4184.9,4184.8,0.42982]
[1760343220818,0.467,4184.9,4184.5,3.2078]
[1760343221219,0.467,4184.6,4184.5,3.2078]
[1760343227928,0.18463631,4185.0,4184.9,0.42981]
[1760343228218,0.74502366,4185.0,4184.9,0.42981]
[1760343228418,0.67193631,4185.0,4184.9,0.42981]
[1760343229819,0.18463631,4185.0,4184.9,0.42981]
[1760343232114,0.68513631,4185.0,4184.9,0.42981]
[1760343232515,0.18463631,4185.0,4184.9,0.42981]
[1760343232716,0.1827,4186.0,4185.9,0.42971]
[1760343232717,0.6832,4186.0,4185.9,0.42971]
[1760343232915,0.1827,4186.0,4185.9,3.63751]
[1760343233726,0.1853702,4186.0,4185.9,3.63751]
[1760343234618,0.1827,4186.5,4186.4,0.42966]
[1760343234819,0.1827,4186.5,4186.4,3.63746]
[1760343235723,0.184975,4186.5,4186.4,3.63981996]
[1760343237417,0.685475,4186.5,4186.4,3.63981996]
[1760343237819,0.65748854,4188.1,4188.0,0.42949]
[1760343238031,0.6957,4188.5,4188.4,0.42945]
[1760343238925,0.69852954,4188.5,4188.4,0.42945]
[1760343239519,0.1952,4188.5,4188.4,0.42945]
[1760343240623,0.19704229,4188.5,4188.4,0.42945]
[1760343241635,0.69754229,4188.5,4188.4,0.42945]
[1760343245527,0.1952,4189.0,4188.9,0.4294]
[1760343245731,0.1952,4189.5,4189.4,0.42935]
[1760343245921,0.1952,4189.5,4189.4,3.63715]
[1760343246630,0.19690285,4189.5,4189.4,3.63998057]
[1760343247634,0.69740285,4189.5,4189.4,3.63998057]
[1760343248333,0.69740285,4189.5,4189.4,3.21063057]
[1760343249832,0.69740285,4189.5,4189.4,3.63998057]
[1760343254532,0.19690285,4189.5,4189.4,3.63998057]
[1760343255536,0.69740285,4189.5,4189.4,3.63998057]
[1760343256636,0.1952,4190.0,4189.9,0.4293]
[1760343256834,0.1952,4190.0,4189.9,3.6371]
[1760343257232,0.1952,4191.5,4190.3,0.42926]
[1760343257435,0.1952,4191.5,4191.2,3.2078]
[1760343257640,0.19690772,4191.5,4191.2,3.2078]
[1760343258443,0.42915,4191.4,4191.2,3.2078]
[1760343258742,0.5005,4191.3,4191.2,3.2078]
[1760343259938,0.4292,4190.9,4190.7,3.2078]
[1760343260243,0.4928,4190.8,4190.7,3.2078]
[1760343265443,1.0370083,4190.8,4190.7,3.2078]
[1760343265942,0.92211,4189.8,4189.7,3.2078]
[1760343266145,1.12474,4189.5,4189.4,0.00283057]
[1760343266339,1.6689483,4189.5,4189.4,0.00283057]
[1760343266540,0.92221,4188.8,4188.7,3.2078]
[1760343267143,1.46774006,4188.8,4188.7,3.2078]
[1760343267352,0.4928,4188.3,4188.2,3.2078]
[1760343267648,0.495598,4188.3,4188.2,3.2104493]
[1760343271350,0.002798,4188.3,4188.2,3.2104493]
[1760343271848,0.495598,4188.3,4188.2,3.2104493]
[1760343273453,0.925058,4188.3,4188.2,3.2104493]
[1760343275051,0.495598,4188.3,4188.2,3.2104493]
[1760343275750,0.4928,4188.9,4188.8,0.4294]
[1760343276652,0.49519881,4188.9,4188.8,0.4294]
[1760343279954,0.4928,4188.8,4188.7,3.2078]
[1760343284949,0.2118,4188.5,4188.2,3.2104493]
[1760343285151,0.95226,4188.3,4188.2,3.2104493]
[1760343288255,1.61416,4188.3,4188.2,3.2104493]
[1760343289258,1.61421,4187.8,4187.7,3.21427]
[1760343289452,1.61421,4187.8,4187.7,0.00647]
[1760343289652,4.03052657,4187.8,4187.7,0.00647]
[1760343290359,4.03052657,4187.8,4187.7,0.00883822]
[1760343293361,4.69642657,4187.8,4187.7,0.00883822]
[1760343297157,5.24261194,4187.8,4187.7,0.00883822]
[1760343297359,1.62087,4187.3,4187.2,3.2078]
[1760343298259,1.62087,4187.3,4187.2,3.21025719]
[1760343299568,1.1913,4187.3,4187.2,3.21025719]
[1760343301371,0.5254,4187.3,4187.2,3.21025719]
[1760343301976,0.8478,4187.3,4187.2,3.21025719]
[1760343302376,1.1913,4187.3,4187.2,3.21025719]
[1760343302776,1.62092,4186.8,4186.7,3.2078]
[1760343303171,0.5254,4186.8,4186.7,3.2078]
[1760343304079,0.5254,4186.8,4186.7,3.20960364]
[1760343304676,0.2059,4187.0,4186.8,0.42962]
[1760343305276,0.5254,4187.8,4187.7,0.42952]
[1760343305480,0.5254,4187.8,4187.7,3.63732]
[1760343306178,0.5254,4187.8,4187.7,3.2078]
[1760343306479,0.2059,4187.5,4187.2,3.2078]
[1760343306673,0.5254,4187.4,4187.3,0.42956]
[1760343310877,0.2059,4187.5,4187.2,3.2078]
[1760343311285,0.5254,4187.4,4187.2,3.63737]
[1760343311480,0.5254,4187.4,4187.3,0.42956]
[1760343313787,0.8478,4187.4,4187.3,0.42956]
[1760343313983,0.5254,4187.4,4187.3,0.42956]
[1760343314379,0.5254,4187.4,4187.2,3.2078]
[1760343314380,0.8478,4187.4,4187.2,3.2078]
[1760343314579,1.1913,4187.3,4187.2,3.63738]
[1760343314985,1.1913,4187.3,4187.2,3.2078]
[1760343315389,1.73990184,4187.3,4187.2,3.2078]
[1760343315989,0.5254,4187.3,4187.2,3.2078]
[1760343316889,0.8478,4187.3,4187.2,3.2078]
[1760343317190,1.1913,4187.3,4187.2,3.2078]
[1760343319488,1.74040676,4187.3,4187.2,3.2078]
[1760343321488,1.74040676,4187.3,4186.7,3.20960364]
[1760343321489,0.6714,4186.8,4186.7,3.20960364]
[1760343321687,1.73097065,4186.8,4186.7,0.00180364]
[1760343321887,4.77710305,4186.8,4186.7,0.00180364]
[1760343324993,1.61149,4186.1,4186.0,3.20599636]
[1760343325396,4.75612905,4186.1,4186.0,3.20599636]
[1760343325596,5.30401718,4186.1,4186.0,3.20599636]
[1760343325892,0.858,4186.1,4186.0,3.20812518]
[1760343326093,0.5104,4186.1,4186.0,3.20812518]
[1760343326294,0.202,4186.5,4186.4,0.42966]
[1760343326493,0.202,4187.0,4186.9,0.42961]
[1760343326693,0.202,4187.0,4186.9,3.63741]
[1760343327297,0.2059,4187.5,4187.4,0.42956]
[1760343327498,0.2059,4187.5,4187.4,3.63736]
[1760343328299,0.7163,4187.5,4187.4,3.63736]
[1760343329800,0.2059,4187.5,4187.4,3.63736]
[1760343330201,0.2059,4187.5,4187.4,4.92115037]
[1760343330506,0.2059,4187.5,4187.4,3.63736]
[1760343330898,0.5104,4187.9,4187.8,0.42951]
[1760343331393,0.5104,4187.9,4187.5,1.28379037]
[1760343331600,0.7124,4187.5,4187.4,4.92115037]
[1760343331801,0.7124,4187.5,4187.4,3.63736]
[1760343332000,0.7124,4187.5,4187.4,4.92115037]
[1760343332502,0.202,4187.5,4187.4,4.92115037]
[1760343332706,0.202,4187.5,4187.4,3.63736]
[1760343333300,0.202,4187.5,4187.4,4.92018572]
[1760343333505,0.7124,4187.5,4187.4,4.92018572]
[1760343335001,0.7124,4187.5,4187.4,3.2078]
[1760343335200,0.7124,4187.5,4186.8,1.71243572]
[1760343335201,0.7124,4187.0,4186.9,3.2078]
[1760343336507,3.8035871,4187.0,4186.9,3.2078]
[1760343338014,0.7124,4186.5,4186.4,3.2078]
[1760343341311,0.7124,4186.5,4186.0,0.00212882]
[1760343342213,0.7124,4186.5,4185.0,1.07449]
[1760343342214,0.42974,4185.6,4185.4,3.2078]
[1760343342513,0.7124,4185.5,4185.4,3.2078]
[1760343343107,0.71433202,4185.5,4185.4,3.21086304]
[1760343348022,3.8273844,4185.5,4185.4,0.00306304]
[1760343349411,0.6745,4185.0,4184.9,3.2078]
[1760343349708,0.62796,4184.5,4184.4,3.2078]